fUSD/lending_fUSD_20240420
["ID","MTS","AMOUNT","RATE_DAILY","PERIOD"]
[323087870,1713639044155,-151.0,0.00016689,2]
[323087871,1713639044163,-346.077977,0.00016689,2]
[323087872,1713639044172,-346.077977,0.00016689,2]
[323087873,1713639044181,-151.0,0.00016689,2]
[323087874,1713639044192,-150.13,0.0001669,2]
[323087875,1713639044201,-56254.75631228,0.000167,2]
[323087876,1713639044211,-482.0,0.000167,2]
[323087877,1713639044221,-151.0,0.000167,2]
[323087878,1713639044230,-165.025059,0.000167,2]
[323087879,1713639044240,-151.0,0.000167,2]
[323087880,1713639044249,-163.051396,0.000167,2]
[323087881,1713639044260,-151.0,0.000167,2]
[323087882,1713639044269,-151.0,0.000167,2]
[323087883,1713639044277,-151.0,0.000167,2]
[323087884,1713639044286,-151.0,0.000167,2]
[323087885,1713639044295,-151.0,0.000167,2]
[323087886,1713639044304,-151.0,0.000167,2]
[323087887,1713639044313,-192.194765,0.000167,2]
[323087888,1713639044322,-151.0,0.000167,2]
[323087889,1713639044331,-192.194765,0.000167,2]
[323087890,1713639044339,-151.0,0.000167,2]
[323087891,1713639044348,-403.03780647,0.000167,2]
[323087996,1713639046431,-155.31,0.00013875,2]
[323087999,1713639046440,-262.04611225,0.00015067,2]
[323088002,1713639046449,-155.31,0.00016139,2]
[323088005,1713639046458,-1154.41421015,0.00016609,2]
[323088012,1713639046487,-1020.67282906,0.00016609,2]
[323088014,1713639046496,-292.7266712,0.00016609,2]
[323088016,1713639046505,-207.31836937,0.00016609,2]
[323088021,1713639046598,-1631.66594347,0.00016609,2]
[323088023,1713639046607,-155.20500722,0.00016675,2]
[323088025,1713639046618,-153.19518082,0.00016676,2]
[323088027,1713639046629,-1715.7082,0.00016676,2]
[323088029,1713639046641,-660.02,0.00016676,2]
[323088031,1713639046653,-1873.023161,0.00016676,2]
[323088050,1713639061502,10000.0,0.000273,120]
[323088056,1713639427619,9687.62066136,0.000169,120]
[323088057,1713639629181,187.19,0.00011555,2]
[323088058,1713640108480,203.63,0.00011238,2]
[323088062,1713640231414,-155.0,0.00012589,2]
[323088064,1713640231424,-419.32971375,0.0001259,2]
[323088066,1713640231520,-523.28591813,0.0001259,2]
[323088067,1713640231535,-896.36868096,0.0001259,2]
[323088068,1713640231545,-378.89764759,0.00012591,2]
[323088069,1713640231555,-300.03480317,0.00012594,2]
[323088070,1713640231685,-2416.11039683,0.00012594,2]
[323088071,1713640231694,-1983.18908285,0.00012693,2]
[323088072,1713640231703,-150.0,0.00012699,2]
[323088073,1713640231713,-764.70062032,0.000127,2]
[323088074,1713640231727,-2361.0504876,0.000127,2]
[323088075,1713640231737,-2500.0,0.00012732,2]
[323088076,1713640231746,-2354.67915026,0.00012832,2]
[323088077,1713640231755,-317.34356756,0.00012838,2]
[323088078,1713640231764,-2000.0,0.00013155,3]
[323088079,1713640231774,-227.3,0.00013411,2]
[323088081,1713640231784,-614.65,0.00013427,2]
[323088083,1713640231793,-150.99,0.00013427,2]
[323088084,1713640231803,-317.78,0.00013427,2]
[323088085,1713640231812,-191.79,0.00013443,2]
[323088086,1713640231821,-1000.0,0.0001346,2]
[323088087,1713640231831,-172.83,0.00013492,2]
[323088088,1713640231842,-203.63,0.00013502,2]
[323088089,1713640231851,-153.54,0.00013544,2]
[323088090,1713640231861,-153.54,0.00013583,2]
[323088091,1713640231870,-153.54,0.00013622,2]
[323088092,1713640231881,-153.54,0.00013662,2]
[323088093,1713640231892,-153.54,0.00013701,2]
[323088094,1713640231903,-153.54,0.0001374,2]
[323088095,1713640231915,-153.54,0.00013779,2]
[323088096,1713640231925,-153.54,0.00013818,2]
[323088097,1713640231936,-153.54,0.00013858,2]
[323088098,1713640231946,-153.54,0.00013897,2]
[323088099,1713640231955,-153.54,0.00013936,2]
[323088100,1713640231964,-175.72,0.00013937,2]
[323088101,1713640231981,-159.0,0.00013969,2]
[323088102,1713640231990,-567.82,0.00013973,2]
[323088103,1713640231999,-153.54,0.00013975,2]
[323088104,1713640232009,-153.54,0.00014014,2]
[323088105,1713640232018,-153.54,0.00014054,2]
[323088106,1713640232027,-3166.68137663,0.00014056,2]
[323088107,1713640232037,-153.54,0.00014093,2]
[323088108,1713640232046,-153.54,0.00014132,2]
[323088109,1713640232056,-153.54,0.00014171,2]
[323088110,1713640232065,-153.54,0.00014211,2]
[323088111,1713640232078,-153.54,0.0001425,2]
[323088112,1713640232087,-154.37,0.00014585,2]
[323088113,1713640232096,-499.99,0.00014585,2]
[323088114,1713640232105,-154.37,0.00014597,2]
[323088115,1713640232115,-2500.0,0.00014598,2]
[323088116,1713640232125,-154.37,0.00014609,2]
[323088117,1713640232135,-154.37,0.00014622,2]
[323088118,1713640232144,-154.37,0.00014634,2]
[323088119,1713640232154,-154.37,0.00014646,2]
[323088120,1713640232165,-154.37,0.00014658,2]
[323088121,1713640232174,-3956.9265,0.00014685,2]
[323088122,1713640232184,-712.16436581,0.00014696,2]
[323088123,1713640232198,-1000.0,0.00014697,2]
[323088124,1713640232207,-1241.30093329,0.00014697,2]
[323088125,1713640232220,-2544.96471285,0.00014698,2]
[323088126,1713640232233,-725.915,0.00014698,2]
[323088127,1713640232244,-14762.633886,0.00014698,2]
[323088128,1713640232257,-1231.98607209,0.00014698,2]
[323088129,1713640232269,-5255.52333214,0.00014698,2]
[323088130,1713640232283,-982.21119649,0.00014698,2]
[323088131,1713640232295,-11584.42178495,0.00014698,2]
[323088132,1713640232308,-19324.59948236,0.00014698,2]
[323088133,1713640232320,-666.96756859,0.00014698,2]
[323088146,1713640237493,-20276.78697738,0.00014698,2]
[323088147,1713640237503,-507.2451,0.00014698,2]
[323088148,1713640237512,-1076.6652,0.00014698,2]
[323088149,1713640237521,-746.28,0.00014787,3]
[323088150,1713640237530,-621.70859268,0.00014795,2]
[323088151,1713640237539,-376.60248121,0.00014795,2]
[323088152,1713640237548,-202.20556811,0.00014795,2]
[323088153,1713640237557,-13182.21296553,0.00014795,2]
[323088154,1713640237566,-155.06988037,0.00014795,2]
[323088155,1713640237575,-164.40528699,0.00014795,2]
[323088156,1713640237584,-1243.31092697,0.00014796,2]
[323088157,1713640237593,-215.83533507,0.00014796,2]
[323088158,1713640237602,-1059.74600206,0.00014797,2]
[323088159,1713640237611,-21819.73437446,0.00014797,2]
[323088160,1713640237620,-329.92730054,0.00014797,2]
[323088161,1713640237630,-244.83254232,0.00014797,2]
[323088162,1713640237638,-25013.91919875,0.00014798,2]
[323088175,1713640237873,-24562.3191435,0.00014798,2]
[323088178,1713640237884,-24370.0997841,0.00014798,2]
[323088180,1713640237895,-13766.8941879,0.00014798,2]
[323088182,1713640237907,-68022.37577501,0.00014798,2]
[323088185,1713640237929,-332.60004763,0.00014798,2]
[323088188,1713640237940,-13753.67012003,0.00014798,2]
[323088190,1713640237952,-1289.66076782,0.00014798,2]
[323088192,1713640237963,-73888.46097526,0.00014798,2]
[323088194,1713640237972,-4819.7784,0.00014798,2]
[323088196,1713640237983,-5241.87053813,0.00014798,2]
[323088198,1713640237994,-512.07929544,0.00014798,2]
[323088214,1713640239586,-896.82497611,0.00014798,2]
[323088215,1713640239600,-1300.6997631,0.00014798,2]
[323088216,1713640239747,-462.74884595,0.00014798,2]
[323088217,1713640239758,-493.50509855,0.00014798,2]
[323088218,1713640239804,-691.31999944,0.00014798,2]
[323088225,1713640242601,-5334.42150638,0.00014798,2]
[323088226,1713640242619,-1535.95,0.00014798,2]
[323088227,1713640242632,-975.50000002,0.00014798,2]
[323088228,1713640242720,-453.28542755,0.00014798,2]
[323088254,1713640245668,-366.01014243,0.00014797,2]
[323088257,1713640245678,-98.43527155,0.00014798,2]
[323088266,1713640245835,-272.45285571,0.00014798,2]
[323088267,1713640245848,-628.3542,0.00014798,2]
[323088268,1713640245891,-489.02686996,0.00014798,2]
[323088269,1713640257400,366.59973991,0.00011238,2]
[323088270,1713640262022,159.0211518,0.00011238,2]
[323088271,1713640265165,501.00394058,0.00011238,2]
[323088272,1713640265187,871.10460175,0.00011238,2]
[323088273,1713640307813,365.68250376,0.00011238,2]
[323088274,1713640324731,281.50788033,0.00011238,2]
[323088275,1713640485105,6704.05855682,0.00028,120]
[323088276,1713640702171,233.39,0.00011008,2]
[323088277,1713640808207,179.49696949,0.00011008,2]
[323088278,1713640812509,68.81804467,0.00011008,2]
[323088279,1713640812531,1400.24651272,0.00011008,2]
[323088280,1713640986861,-155.0,0.00011893,2]
[323088281,1713640986884,-3845.0,0.00011893,2]
[323088282,1713640988772,-563.63906285,0.00011893,2]
[323088283,1713640988793,-2354.67915026,0.00011894,2]
[323088284,1713640988812,-202.26348816,0.00011894,2]
[323088285,1713640988835,-879.41829873,0.00011895,2]
[323088286,1713640996553,-376.71560002,0.00011892,2]
[323088287,1713640996578,-509.34952904,0.00011895,2]
[323088288,1713640996598,-164.45404714,0.00011895,2]
[323088289,1713640996622,-359.18860075,0.00011895,2]
[323088290,1713640996643,-1983.18908285,0.00011896,2]
[323088291,1713641021167,607.1031402,0.00011896,2]
[323088292,1713641021188,4000.0,0.00011896,2]
[323088293,1713641021209,4000.0,0.00011896,2]
[323088294,1713641021230,2416.77812795,0.00011896,2]
[323088295,1713641072670,1583.22187205,0.00011896,2]
[323088296,1713641072692,4000.0,0.00011896,2]
[323088297,1713641072712,4000.0,0.00011896,2]
[323088298,1713641072732,4000.0,0.00011896,2]
[323088299,1713641072752,4000.0,0.00011896,2]
[323088300,1713641072773,1850.53915157,0.00011896,2]
[323088301,1713641082695,694.0,0.00011008,2]
[323088302,1713641135823,359.18860075,0.00011896,2]
[323088303,1713641137211,150.13687288,0.00011837,2]
[323088306,1713641175367,262.92,0.0001036,2]
[323088307,1713641266856,359.18860075,0.00011896,2]
[323088308,1713641341381,324.02677405,0.00011896,2]
[323088309,1713641341406,35.1618267,0.00011896,2]
[323088310,1713641350270,2300.3443761,0.00011896,2]
[323088311,1713641378498,-155.0,0.00011897,2]
[323088312,1713641378519,-156.89370246,0.00011898,2]
[323088344,1713641432038,-342.46857,0.00012,2]
[323088345,1713641432049,-57.53143,0.00012,2]
[323088346,1713641432059,-2500.0,0.00012148,2]
[323088347,1713641432068,-1741.55820738,0.00012221,3]
[323088348,1713641432113,-258.44179262,0.00012221,3]
[323088349,1713641432123,-292.04,0.00012243,2]
[323088350,1713641432132,-341.21797932,0.00012246,2]
[323088351,1713641432142,-234.92932396,0.00012247,2]
[323088352,1713641432152,-23880.0,0.00012248,2]
[323088353,1713641432161,-1234.79,0.00012251,2]
[323088354,1713641432171,-164.5,0.00012255,2]
[323088355,1713641432180,-150.0,0.00012276,2]
[323088356,1713641432189,-320.11,0.0001231,2]
[323088357,1713641432205,-260.69,0.0001231,2]
[323088358,1713641432215,-2180.67,0.00012431,2]
[323088359,1713641432224,-1182.9,0.0001244,2]
[323088360,1713641432234,-250.0,0.00012444,2]
[323088361,1713641432244,-2563.66,0.00012444,2]
[323088362,1713641432254,-356.35,0.00012444,2]
[323088363,1713641432263,-1162.0,0.00012453,2]
[323088364,1713641432272,-3370.37,0.00012462,2]
[323088365,1713641432282,-200.0,0.00012483,2]
[323088366,1713641432291,-153.18,0.00012523,2]
[323088367,1713641432301,-153.18,0.00012561,2]
[323088368,1713641432310,-153.18,0.000126,2]
[323088369,1713641432319,-262.92,0.00012624,2]
[323088370,1713641432328,-153.18,0.00012638,2]
[323088371,1713641432338,-153.18,0.00012676,2]
[323088372,1713641432347,-153.18,0.00012715,2]
[323088373,1713641432356,-153.18,0.00012753,2]
[323088374,1713641432365,-228.05,0.00012755,2]
[323088375,1713641432374,-228.05,0.00012759,2]
[323088376,1713641432384,-228.05,0.00012762,2]
[323088377,1713641432393,-228.05,0.00012765,2]
[323088378,1713641432402,-228.05,0.00012769,2]
[323088379,1713641432411,-228.05,0.00012772,2]
[323088380,1713641432420,-228.05,0.00012776,2]
[323088381,1713641432431,-228.05,0.00012779,2]
[323088382,1713641432440,-228.05,0.00012782,2]
[323088383,1713641432454,-228.05,0.00012786,2]
[323088384,1713641432464,-228.05,0.00012789,2]
[323088385,1713641432473,-153.18,0.00012792,2]
[323088386,1713641432486,-228.05,0.00012792,2]
[323088387,1713641432497,-5806.13527407,0.00012794,2]
[323088388,1713641432507,-228.05,0.00012796,2]
[323088389,1713641432516,-228.05,0.00012799,2]
[323088390,1713641432525,-208.73867777,0.00012802,2]
[323088391,1713641432534,-201.64044997,0.00012802,2]
[323088392,1713641432545,-164.13442256,0.00012802,2]
[323088393,1713641432555,-375.6988305,0.00012802,2]
[323088394,1713641432567,-316.62824532,0.00012802,2]
[323088395,1713641432577,-223.65370089,0.00012802,2]
[323088396,1713641432587,-1646.00256307,0.00012802,2]
[323088397,1713641432597,-1140.73190118,0.00012802,2]
[323088398,1713641432607,-228.05,0.00012803,2]
[323088399,1713641432618,-2437.81491193,0.00012803,2]
[323088400,1713641432627,-1032.41401534,0.00012803,2]
[323088401,1713641432638,-228.05,0.00012806,2]
[323088402,1713641432648,-228.05,0.00012809,2]
[323088403,1713641432658,-228.05,0.00012813,2]
[323088404,1713641432667,-228.05,0.00012816,2]
[323088405,1713641432677,-228.05,0.00012819,2]
[323088406,1713641432686,-153.18,0.0001283,2]
[323088407,1713641432698,-153.18,0.00012868,2]
[323088408,1713641432707,-1767.85622329,0.00012883,2]
[323088409,1713641432717,-153.18,0.00012907,2]
[323088410,1713641432726,-171.65,0.00012913,2]
[323088411,1713641432737,-156.89370246,0.00012921,2]
[323088412,1713641432747,-153.18,0.00012945,2]
[323088413,1713641432758,-2162.2,0.00012949,2]
[323088414,1713641432770,-193.24,0.00012949,2]
[323088415,1713641432782,-1000.0,0.00012955,2]
[323088416,1713641432792,-153.18,0.00012984,2]
[323088417,1713641432802,-854.07,0.00012991,2]
[323088418,1713641432815,-499.99,0.00012991,2]
[323088419,1713641432826,-153.18,0.00013022,2]
[323088420,1713641432836,-153.18,0.0001306,2]
[323088421,1713641432847,-153.18,0.00013099,2]
[323088422,1713641432858,-153.18,0.00013137,2]
[323088423,1713641432867,-153.18,0.00013175,2]
[323088424,1713641432878,-500.0,0.00013425,2]
[323088425,1713641432888,-2500.0,0.00013599,2]
[323088426,1713641432897,-1500.0,0.00013699,2]
[323088427,1713641432908,-640.03,0.00013699,2]
[323088428,1713641432918,-500.0,0.00013699,2]
[323088429,1713641432928,-200.0,0.00013699,2]
[323088430,1713641432938,-240.47,0.00013778,2]
[323088431,1713641432951,-240.47,0.00013781,2]
[323088432,1713641432960,-240.47,0.00013785,2]
[323088433,1713641432969,-240.47,0.00013789,2]
[323088434,1713641432979,-240.47,0.00013792,2]
[323088435,1713641432988,-240.47,0.00013796,2]
[323088436,1713641432998,-240.47,0.000138,2]
[323088437,1713641433007,-240.47,0.00013803,2]
[323088438,1713641433018,-240.47,0.00013807,2]
[323088439,1713641433029,-240.47,0.0001381,2]
[323088440,1713641433039,-240.47,0.00013814,2]
[323088441,1713641433049,-240.47,0.00013818,2]
[323088442,1713641433059,-240.47,0.00013821,2]
[323088443,1713641433070,-240.47,0.00013825,2]
[323088444,1713641433079,-240.47,0.00013829,2]
[323088445,1713641433090,-240.47,0.00013832,2]
[323088446,1713641433102,-240.47,0.00013836,2]
[323088447,1713641433114,-240.47,0.00013839,2]
[323088448,1713641433125,-240.47,0.00013843,2]
[323088449,1713641433135,-240.47,0.00013847,2]
[323088450,1713641433145,-320.11,0.00013848,2]
[323088451,1713641433156,-412.89,0.00013936,2]
[323088452,1713641433167,-909.21,0.00013936,2]
[323088453,1713641433178,-156.89370246,0.00013945,2]
[323088454,1713641433187,-1818.42,0.00013947,2]
[323088455,1713641433201,-1250.0,0.00014,2]
[323088456,1713641433211,-3163.11291365,0.00014056,2]
[323088457,1713641433221,-173.5194,0.00014498,2]
[323088458,1713641433232,-155.0,0.00014502,2]
[323088459,1713641433242,-244.83254232,0.00014503,2]
[323088460,1713641433251,-329.92730054,0.00014503,2]
[323088461,1713641433261,-1059.74600206,0.00014503,2]
[323088462,1713641433270,-215.83533507,0.00014503,2]
[323088463,1713641433279,-1243.31092697,0.00014503,2]
[323088464,1713641433289,-21819.73437446,0.00014504,2]
[323088465,1713641433299,-305.136445,0.00014521,2]
[323088466,1713641433308,-746.28,0.00014521,3]
[323088467,1713641433317,-150.0,0.00014531,2]
[323088468,1713641433327,-435.6379,0.0001456,2]
[323088469,1713641433337,-507.2451,0.0001456,2]
[323088470,1713641433347,-2500.0,0.0001456,2]
[323088471,1713641433356,-1000.0,0.00014574,2]
[323088472,1713641433365,-2716.72057549,0.00014598,2]
[323088473,1713641433375,-3453.6568,0.00014598,2]
[323088474,1713641433384,-2279.5534,0.00014598,2]
[323088475,1713641433394,-18186.0131,0.00014598,2]
[323088476,1713641433403,-7188.7350975,0.00014598,2]
[323088477,1713641433420,-2791.05680083,0.00014598,2]
[323088478,1713641433431,-10296.99510167,0.00014598,2]
[323088479,1713641433441,-400.0,0.000146,5]
[323088480,1713641433454,-44895.68284247,0.0001466,2]
[323088481,1713641433464,-621.70859268,0.00014696,2]
[323088482,1713641433478,-13182.21296553,0.00014696,2]
[323088483,1713641433488,-500.0,0.00014697,2]
[323088484,1713641433497,-136490.3043,0.00014698,2]
[323088485,1713641433507,-11353.899,0.00014698,2]
[323088486,1713641433518,-900.0,0.000147,5]
[323088487,1713641433528,-3000.0,0.0001476,2]
[323088488,1713641433538,-1001.56124984,0.00014796,2]
[323088489,1713641433548,-1233.91811712,0.00014796,2]
[323088490,1713641433557,-1400.0,0.000148,5]
[323088491,1713641433566,-262.92,0.00014888,2]
[323088492,1713641433576,-1800.0,0.000149,5]
[323088493,1713641433586,-181.97217208,0.000149,2]
[323088494,1713641433595,-209.52982044,0.000149,2]
[323088495,1713641433605,-156.89370246,0.00014968,2]
[323088496,1713641433614,-336.47445602,0.00014968,2]
[323088497,1713641433623,-313.41193825,0.00014968,2]
[323088498,1713641433633,-150.14,0.0001499,2]
[323088499,1713641433643,-150.14,0.0001499,2]
[323088500,1713641433652,-150.14,0.0001499,2]
[323088501,1713641433661,-150.14,0.0001499,2]
[323088502,1713641433670,-150.14,0.0001499,2]
[323088503,1713641433679,-150.14,0.0001499,2]
[323088504,1713641433689,-150.14,0.0001499,2]
[323088505,1713641433700,-150.14,0.0001499,2]
[323088506,1713641433709,-251.67544609,0.0001499,2]
[323088507,1713641433717,-615.53322152,0.00015,2]
[323088508,1713641433726,-1824.0722,0.00015,3]
[323088509,1713641433929,-426.81421058,0.00015,2]
[323088510,1713641433939,-500.0,0.00015,2]
[323088511,1713641433952,-11703.15480701,0.00015,2]
[323088512,1713641433963,-15066.99998,0.00015,2]
[323088513,1713641433989,-73342.07248645,0.00015,2]
[323088514,1713641434000,-657.2127402,0.00015,2]
[323088515,1713641434011,-425.1099999,0.00015,2]
[323088516,1713641434022,-264.25996,0.00015,2]
[323088533,1713641437626,-1057.59557018,0.00015,2]
[323088534,1713641437918,-87236.48773244,0.00015,2]
[323088537,1713641437963,-3210.41374089,0.00015,2]
[323088589,1713641439709,-10931.55257449,0.00015,2]
[323088591,1713641439721,-16768.98760738,0.00015,2]
[323088594,1713641439734,-666.14594998,0.00015,2]
[323088598,1713641439770,-20450.99749865,0.00015,2]
[323088603,1713641439821,-334708.95257001,0.00015,2]
[323088604,1713641439832,-11362.54616129,0.00015,2]
[323088605,1713641439841,-1291.480897,0.00015,2]
[323088606,1713641439850,-181.97217205,0.00015025,2]
[323088607,1713641439860,-150.14,0.00015058,2]
[323088608,1713641439869,-526.09688753,0.00015068,2]
[323088609,1713641439878,-500.0,0.00015068,2]
[323088610,1713641439887,-155.0,0.00015068,2]
[323088611,1713641439895,-500.0,0.00015068,2]
[323088612,1713641439905,-500.0,0.00015068,2]
[323088613,1713641439914,-500.0,0.00015068,2]
[323088614,1713641439925,-500.0,0.00015068,2]
[323088615,1713641439935,-500.0,0.00015068,2]
[323088616,1713641439944,-572.58,0.00015068,2]
[323088617,1713641439956,-500.0,0.00015068,2]
[323088618,1713641439966,-500.0,0.00015068,2]
[323088619,1713641439975,-500.0,0.00015068,2]
[323088620,1713641439984,-500.0,0.00015068,2]
[323088621,1713641439993,-500.0,0.00015068,2]
[323088622,1713641440003,-558.07,0.00015068,2]
[323088623,1713641440012,-500.0,0.00015068,2]
[323088624,1713641440022,-187.65359773,0.00015068,2]
[323088625,1713641440032,-500.0,0.00015068,2]
[323088626,1713641440043,-500.0,0.00015068,2]
[323088627,1713641440052,-500.0,0.00015068,2]
[323088628,1713641440063,-500.0,0.00015068,2]
[323088629,1713641440072,-500.0,0.00015068,2]
[323088630,1713641440083,-500.0,0.00015068,2]
[323088631,1713641440093,-579.51404344,0.00015068,2]
[323088632,1713641440105,-150.0,0.00015068,2]
[323088633,1713641440114,-533.95,0.00015068,2]
[323088634,1713641440123,-346.35272464,0.00015068,2]
[323088635,1713641440131,-500.0,0.00015068,2]
[323088636,1713641440141,-500.0,0.00015068,2]
[323088637,1713641440150,-417.15518475,0.00015068,2]
[323088638,1713641440159,-500.0,0.00015068,2]
[323088639,1713641440168,-500.0,0.00015068,2]
[323088640,1713641440177,-585.19,0.00015068,2]
[323088641,1713641440187,-500.0,0.00015068,2]
[323088642,1713641440198,-500.0,0.00015068,2]
[323088644,1713641440207,-500.0,0.00015068,2]
[323088645,1713641440216,-500.0,0.00015068,2]
[323088646,1713641440225,-500.0,0.00015068,2]
[323088647,1713641440234,-489.65370128,0.00015068,2]
[323088648,1713641440243,-500.0,0.00015068,2]
[323088649,1713641440252,-500.0,0.00015068,2]
[323088651,1713641440262,-500.0,0.00015068,2]
[323088652,1713641440273,-500.0,0.00015068,2]
[323088653,1713641440282,-500.0,0.00015068,2]
[323088654,1713641440290,-500.0,0.00015068,2]
[323088655,1713641440300,-500.0,0.00015068,2]
[323088656,1713641440309,-500.0,0.00015068,2]
[323088657,1713641440317,-500.0,0.00015068,2]
[323088658,1713641440326,-1507.87,0.00015068,2]
[323088659,1713641440335,-500.0,0.00015068,2]
[323088660,1713641440344,-500.0,0.00015068,2]
[323088661,1713641440355,-500.0,0.00015068,2]
[323088662,1713641440364,-500.0,0.00015068,2]
[323088663,1713641440373,-500.0,0.00015068,2]
[323088664,1713641440382,-6623.83,0.00015068,2]
[323088665,1713641440391,-500.0,0.00015068,2]
[323088666,1713641440400,-500.0,0.00015068,2]
[323088667,1713641440410,-500.0,0.00015068,2]
[323088668,1713641440419,-500.0,0.00015068,2]
[323088669,1713641440429,-500.0,0.00015068,2]
[323088670,1713641440438,-228.17,0.00015068,2]
[323088671,1713641440448,-3000.0,0.0001507,2]
[323088672,1713641440457,-3271.48012794,0.00015081,2]
[323088673,1713641440467,-227.3,0.00015088,2]
[323088674,1713641440481,-181.97217205,0.0001515,2]
[323088675,1713641440491,-209.52982044,0.000152,2]
[323088676,1713641440502,-3370.37,0.00015201,2]
[323088677,1713641440511,-7500.0,0.00015242,2]
[323088678,1713641440521,-162.23,0.00015249,2]
[323088679,1713641440530,-518.29,0.0001526,2]
[323088680,1713641440540,-181.97217205,0.00015275,2]
[323088681,1713641440550,-150.14,0.0001529,2]
[323088682,1713641440559,-150.14,0.0001529,2]
[323088683,1713641440567,-150.14,0.0001529,2]
[323088684,1713641440577,-150.14,0.0001529,2]
[323088685,1713641440586,-150.14,0.0001529,2]
[323088686,1713641440595,-779.83602035,0.00015298,2]
[323088687,1713641440604,-1069.25887054,0.00015298,2]
[323088688,1713641440613,-209373.7647358,0.000153,5]
[323088689,1713641440622,-393.180781,0.000153,2]
[323088690,1713641440631,-393.180781,0.000153,2]
[323088691,1713641440641,-151.0,0.000153,2]
[323088692,1713641440650,-151.0,0.000153,2]
[323088693,1713641440659,-151.0,0.000153,2]
[323088694,1713641440668,-151.0,0.000153,2]
[323088695,1713641440677,-151.0,0.000153,2]
[323088696,1713641440685,-151.0,0.000153,2]
[323088697,1713641440694,-151.0,0.000153,2]
[323088698,1713641440704,-151.0,0.000153,2]
[323088699,1713641440713,-151.0,0.000153,2]
[323088700,1713641440723,-151.0,0.000153,2]
[323088701,1713641440732,-151.0,0.000153,2]
[323088702,1713641440741,-151.0,0.000153,2]
[323088703,1713641440750,-151.0,0.000153,2]
[323088704,1713641440759,-151.0,0.000153,2]
[323088705,1713641440768,-151.0,0.000153,2]
[323088706,1713641440778,-151.0,0.000153,2]
[323088707,1713641440788,-151.0,0.000153,2]
[323088708,1713641440797,-151.0,0.000153,2]
[323088709,1713641440806,-151.0,0.000153,2]
[323088710,1713641440816,-151.0,0.000153,2]
[323088711,1713641440826,-151.0,0.000153,2]
[323088712,1713641440836,-151.0,0.000153,2]
[323088713,1713641440845,-317.391062,0.000153,2]
[323088714,1713641440854,-151.0,0.000153,2]
[323088715,1713641440863,-151.0,0.000153,2]
[323088716,1713641440873,-317.391062,0.000153,2]
[323088717,1713641440881,-489.831613,0.000153,2]
[323088718,1713641440891,-489.831613,0.000153,2]
[323088719,1713641440901,-151.0,0.000153,2]
[323088720,1713641440910,-295.375374,0.000153,2]
[323088721,1713641440919,-541.587722,0.000153,2]
[323088722,1713641440928,-541.587722,0.000153,2]
[323088723,1713641440937,-151.0,0.000153,2]
[323088724,1713641440948,-151.0,0.000153,2]
[323088725,1713641440961,-172.975289,0.000153,2]
[323088726,1713641440971,-172.975289,0.000153,2]
[323088727,1713641440982,-155.753234,0.000153,2]
[323088728,1713641440992,-311.470179,0.000153,2]
[323088729,1713641441001,-311.470179,0.000153,2]
[323088730,1713641441010,-151.0,0.000153,2]
[323088731,1713641441019,-151.0,0.000153,2]
[323088732,1713641441027,-151.0,0.000153,2]
[323088733,1713641441036,-151.0,0.000153,2]